bitfinex-derivatives/quotes_ETHF0:USTF0_20250430
["timestamp","ask_amount","ask_price","bid_price","bid_amount"]
[1745973807296,1.10604,1807.8,1807.7,6.2763]
[1745973821207,2.68494,1807.8,1807.7,6.2763]
[1745973821609,6.56294,1807.8,1807.7,3.828]
[1745973824115,4.98404,1807.8,1807.7,3.828]
[1745973824318,4.98404,1807.8,1807.7,5.4088]
[1745973824617,4.98404,1807.8,1807.7,6.1929]
[1745973824817,6.71444,1807.8,1807.7,6.1929]
[1745973829023,6.71444,1807.8,1807.7,5.4088]
[1745973830423,6.71444,1807.8,1807.7,3.828]
[1745973834923,6.71444,1807.8,1807.7,5.4257]
[1745973842029,6.71444,1807.8,1807.7,3.828]
[1745973842321,1.10622,1807.5,1807.4,5.902]
[1745973842527,4.98522,1807.5,1807.4,5.902]
[1745973842926,6.61702,1807.5,1807.4,5.902]
[1745973843129,10.44502,1807.5,1807.4,5.902]
[1745973845528,1.10628,1807.4,1807.3,1.6212]
[1745973845728,3.56528,1807.4,1807.3,1.6212]
[1745973846124,7.39328,1807.4,1807.3,1.6212]
[1745973849322,4.93428,1807.4,1807.3,7.34562793]
[1745973849728,4.93428,1807.4,1807.3,2.34562793]
[1745973850132,1.10628,1807.4,1807.3,2.34562793]
[1745973850435,1.10628,1807.4,1807.3,1.6212]
[1745973850633,1.10634,1807.3,1807.2,9.1098]
[1745973850831,1.10646,1807.1,1807.0,4.9325]
[1745973851137,4.93446,1807.1,1807.0,3.2078]
[1745973851532,6.51656,1807.1,1807.0,3.2078]
[1745973852127,1.10665,1806.8,1806.7,14.05899499]
[1745973852337,1.10665,1806.8,1806.7,18.8730884]
[1745973853134,2.68875,1806.8,1806.7,18.8730884]
[1745973853534,2.68875,1806.8,1806.7,12.24599499]
[1745973853734,2.68875,1806.8,1806.7,10.52129499]
[1745973854737,2.68875,1806.8,1806.7,3.2078]
[1745973854936,1.10665,1806.8,1806.7,3.2078]
[1745973855238,6.57665,1806.8,1806.7,3.2078]
[1745973856533,3.828,1806.8,1806.7,5.89011]
[1745973856730,3.828,1806.8,1806.7,6.73911]
[1745973857144,1.10665,1806.8,1806.7,6.73911]
[1745973857439,1.10665,1806.8,1806.7,12.64111]
[1745973857836,1.10665,1806.8,1806.7,11.5344]
[1745973858038,7.48224,1806.9,1806.7,11.5344]
[1745973858341,7.48224,1806.9,1806.8,1.5756]
[1745973858548,7.48224,1806.9,1806.8,2.4075]
[1745973859442,1.10665,1806.8,1806.7,9.1098]
[1745973859645,2.81555,1806.8,1806.7,9.1098]
[1745973860542,2.81555,1806.8,1806.7,10.7381]
[1745973860740,2.81555,1806.8,1806.7,11.84481]
[1745973861036,2.81555,1806.8,1806.7,10.7381]
[1745973861542,1.10665,1806.8,1806.7,11.84481]
[1745973861735,5.82783,1806.9,1806.8,1.10665]
[1745973861941,5.82783,1806.9,1806.8,3.55275]
[1745973862237,4.7212,1806.9,1806.8,3.55275]
[1745973864045,5.82779,1806.9,1806.8,3.55275]
[1745973865840,5.53248,1807.1,1806.8,3.55275]
[1745973865841,1.10651,1807.1,1807.0,1.10647]
[1745973866045,1.10651,1807.1,1807.0,4.31427]
[1745973869049,1.10651,1807.1,1807.0,10.21627]
[1745973869248,3.865,1807.2,1807.1,1.10646]
[1745973869440,3.865,1807.2,1807.1,10.28646]
[1745973869936,1.95118,1807.4,1807.3,1.10634]
[1745973870140,1.95118,1807.4,1807.3,4.31414]
[1745973870437,3.58278,1807.4,1807.3,4.31414]
[1745973873646,3.58278,1807.4,1807.3,3.2078]
[1745973874251,7.41078,1807.4,1807.3,3.2078]
[1745973878951,9.07028,1807.4,1807.1,1.10646]
[1745973879152,1.1064,1807.2,1807.0,8.69937]
[1745973879351,3.2337,1807.1,1807.0,8.69937]
[1745973879955,4.34016,1807.1,1807.0,5.902]
[1745973880253,8.16816,1807.1,1807.0,5.902]
[1745973883651,1.10659,1806.9,1806.8,5.902]
[1745973886360,1.10659,1806.9,1806.8,7.5509]
[1745973889165,1.10659,1806.9,1806.8,8.65755]
[1745973889463,1.10653,1807.0,1806.9,1.10653]
[1745973889663,1.10653,1807.0,1806.9,7.55639069]
[1745973890959,1.1065,1807.1,1807.0,1.10648]
[1745973891261,3.85,1807.2,1807.1,1.10646]
[1745973891462,3.85,1807.2,1807.1,4.31426]
[1745973891661,3.85,1807.2,1807.1,5.97406]
[1745973891963,4.95645,1807.2,1807.1,4.8676]
[1745973894363,3.85,1807.2,1807.1,5.97406]
[1745973894563,4.9564,1807.2,1807.1,5.97406]
[1745973894763,4.9564,1807.2,1807.1,4.8676]
[1745973894963,4.9564,1807.2,1807.1,5.97406]
[1745973895362,4.9564,1807.2,1807.1,6.6985291]
[1745973895567,4.9564,1807.2,1807.1,12.60055369]
[1745973895766,3.85,1807.2,1807.1,12.60055369]
[1745973896163,4.9564,1807.2,1807.1,12.60055369]
[1745973896677,2.77649,1807.3,1807.2,1.1064]
[1745973896964,2.77649,1807.3,1807.2,2.6935]
[1745973897165,6.60449,1807.3,1807.2,2.6935]
[1745973897667,6.60449,1807.3,1807.2,1.5871]
[1745973899264,6.60449,1807.3,1807.2,2.6935]
[1745973899465,6.60449,1807.3,1807.2,3.4977]
[1745973900163,3.828,1807.3,1807.2,9.3997]
[1745973900368,7.48184,1807.3,1807.2,5.902]
[1745973901270,1.1064,1807.2,1807.1,3.2078]
[1745973901474,1.10646,1807.1,1807.0,5.902]
[1745973901665,5.78086,1807.1,1807.0,5.902]
[1745973902162,9.60886,1807.1,1807.0,5.902]
[1745973904269,9.60886,1807.1,1806.7,5.9437]
[1745973904270,1.10665,1806.8,1806.7,5.9437]
[1745973904469,1.10665,1806.8,1806.7,6.66816792]
[1745973904671,1.10665,1806.8,1806.7,6.66820552]
[1745973905369,1.95695,1806.8,1806.7,6.66820552]
[1745973905670,1.95695,1806.8,1806.7,5.56150552]
[1745973905865,1.95695,1806.8,1806.7,3.2078]
[1745973906471,1.95695,1806.8,1806.7,6.02121]
[1745973906671,1.95695,1806.8,1806.7,4.9145]
[1745973907164,3.67435,1806.8,1806.7,4.9145]
[1745973907365,0.8503,1806.8,1806.7,5.63891129]
[1745973907871,0.8503,1806.8,1806.7,6.74562129]
[1745973908371,1.10659,1806.9,1806.8,1.1066]
[1745973908670,1.10659,1806.9,1806.8,2.8229]
[1745973908869,1.10659,1806.9,1806.8,3.54745585]
[1745973910066,1.10659,1806.9,1806.8,9.44945585]
[1745973910266,1.10659,1806.9,1806.8,9.44941162]
[1745973911473,1.10659,1806.9,1806.8,10.28021162]
[1745973912175,1.10659,1806.9,1806.8,10.27998294]
[1745973913975,1.10659,1806.9,1806.8,10.27998082]
[1745973915569,1.10659,1806.9,1806.8,7.73288082]
[1745973915770,1.10659,1806.9,1806.8,6.62628082]
[1745973915977,1.10665,1806.8,1806.7,3.2078]
[1745973916170,2.77645,1806.8,1806.7,3.2078]
[1745973916470,1.10671,1806.7,1806.6,7.00877]
[1745973916676,2.73311,1806.7,1806.6,7.00877]
[1745973916876,2.73311,1806.7,1806.6,8.62417]
[1745973917375,2.73311,1806.7,1806.6,5.902]
[1745973917872,1.10689,1806.4,1806.3,3.2078]
[1745973918673,3.59099,1806.4,1806.3,3.2078]
[1745973919670,1.10695,1806.3,1806.2,5.902]
[1745973919872,2.72405,1806.3,1806.2,5.902]
[1745973921878,1.10705,1806.2,1806.0,10.21689]
[1745973922177,3.57495,1806.2,1806.0,10.21689]
[1745973922584,1.6544,1806.1,1806.0,10.21689]
[1745973922972,2.76148,1806.1,1806.0,10.21689]
[1745973923174,2.76148,1806.1,1806.0,7.0358]
[1745973924274,2.76148,1806.1,1806.0,4.8456]
[1745973925078,2.76148,1806.1,1806.0,5.95274]
[1745973925380,2.76148,1806.1,1806.0,4.8456]
[1745973925984,2.76148,1806.1,1806.0,3.2078]
[1745973927273,1.10726,1805.8,1805.7,5.902]
[1745973927875,2.79876,1805.8,1805.7,5.902]
[1745973928974,1.6915,1805.8,1805.5,5.902]
[1745973929180,1.10738,1805.6,1805.5,9.1098]
[1745973929380,1.10738,1805.6,1805.5,10.7798]
[1745973929581,3.828,1805.8,1805.7,1.10732]
[1745973929876,5.4099,1805.8,1805.7,1.10732]
[1745973930080,3.828,1805.8,1805.7,1.10732]
[1745973930381,4.94325,1805.9,1805.7,0.851]
[1745973930568,4.94325,1805.9,1805.8,1.67]
[1745973930770,6.52515,1805.9,1805.8,1.67]
[1745973931183,1.10726,1805.8,1805.6,1.10734]
[1745973931376,1.10732,1805.7,1805.6,2.77734]
[1745973932682,3.53849,1805.8,1805.7,1.10732]
[1745973934081,1.10732,1805.7,1805.6,2.77733]
[1745973934581,4.94324,1805.9,1805.8,1.10726]
[1745973934780,6.62484,1805.9,1805.8,4.31506]
[1745973936184,1.10696,1806.4,1805.8,9.9691]
[1745973936379,1.6208,1806.3,1806.2,4.31478]
[1745973937086,2.72778,1806.3,1806.2,4.31478]
[1745973937286,2.72778,1806.3,1806.2,5.99918]
[1745973937487,1.10654,1807.0,1806.9,1.10655]
[1745973937784,1.6208,1807.0,1806.8,4.3144]
[1745973937986,1.10659,1806.9,1806.8,3.2078]
[1745973938284,4.93459,1806.9,1806.8,3.2078]
[1745973938490,4.93459,1806.9,1806.6,2.79112]
[1745973938491,1.10671,1806.7,1806.6,3.2078]
[1745973938987,8.12797,1806.8,1806.6,4.31452]
[1745973939182,1.5944,1806.7,1806.6,4.31452]
[1745973943684,3.824,1806.8,1806.7,1.10671]
[1745973943889,1.6617,1807.0,1806.7,1.5909]
[1745973944085,1.6617,1807.0,1806.8,3.2078]
[1745973944291,1.6617,1807.0,1806.9,1.10659]
[1745973944790,4.6213,1807.1,1807.0,1.10653]
[1745973945089,8.4493,1807.1,1807.0,4.31433]
[1745973945294,11.27696,1807.1,1807.0,3.2078]
[1745973946090,2.76644,1807.0,1806.7,5.902]
[1745973946295,1.10665,1806.8,1806.7,5.902]
[1745973946482,1.10665,1806.8,1806.7,7.5912]
[1745973946992,1.10665,1806.8,1806.7,8.69791]
[1745973947194,3.828,1806.8,1806.7,8.69791]
[1745973947987,3.828,1806.8,1806.7,9.55581]
[1745973948294,1.10653,1807.0,1806.9,1.10659]
[1745973948503,2.69093,1807.0,1806.9,1.10659]
[1745973948793,1.10653,1807.0,1806.9,1.10659]
[1745973949088,1.10665,1806.8,1806.7,5.902]
[1745973949289,1.10665,1806.8,1806.7,7.00871]
[1745973949688,2.69105,1806.8,1806.7,8.59241]
[1745973949892,1.5844,1806.8,1806.7,8.59241]
[1745973950091,2.69105,1806.8,1806.7,8.59241]
[1745973950890,1.5844,1806.8,1806.7,8.59241]
[1745973951098,1.1066,1806.9,1806.8,1.10665]
[1745973951397,1.1066,1806.9,1806.8,5.99185]
[1745973951696,1.1066,1806.9,1806.8,4.8852]
[1745973951897,1.1066,1806.9,1806.8,5.99185]
[1745973952097,4.9346,1806.9,1806.8,5.99185]
[1745973953092,4.9346,1806.9,1806.8,3.2078]
[1745973955095,4.9346,1806.9,1806.8,4.31445]
[1745973957696,3.828,1806.9,1806.6,3.2078]
[1745973957887,1.10671,1806.7,1806.6,3.2078]
[1745973958088,3.6145,1806.8,1806.7,1.10671]
[1745973958288,1.9406,1806.8,1806.7,1.10671]
[1745973959000,1.10671,1806.7,1806.6,5.94732]
[1745973959196,5.7686,1806.8,1806.7,1.10671]
[1745973959499,3.828,1806.8,1806.7,1.10671]
[1745973959699,3.828,1806.8,1806.7,2.73951]
[1745973959890,4.93465,1806.8,1806.7,2.73951]
[1745973960089,1.10665,1806.8,1806.7,8.64151]
[1745973961096,1.10665,1806.8,1806.7,5.902]
[1745973963101,1.10665,1806.8,1806.7,7.00871]
[1745973963598,1.10665,1806.8,1806.7,5.902]
[1745973965299,1.10671,1806.7,1806.6,3.2078]
[1745973965497,1.96481,1806.7,1806.6,3.2078]
[1745973966097,5.79281,1806.7,1806.6,3.2078]
[1745973966298,1.10677,1806.6,1806.5,5.902]
[1745973966498,1.10683,1806.5,1806.4,4.31465]
[1745973967301,1.96484,1806.7,1806.6,1.10677]
[1745973968001,1.96484,1806.7,1806.6,2.73337]
[1745973968209,1.96484,1806.7,1806.6,5.94117]
[1745973968405,3.822,1806.8,1806.7,1.10671]
[1745973968596,3.822,1806.8,1806.7,2.73331]
[1745973969007,1.10662,1806.9,1806.8,1.10665]
[1745973969196,1.10659,1806.9,1806.8,5.9275]
[1745973971013,1.10659,1806.9,1806.8,4.8209]
[1745973971203,2.76647,1806.9,1806.6,3.2078]
[1745973971506,1.10671,1806.7,1806.6,4.31457]
[1745973971706,1.10671,1806.7,1806.6,10.94230175]
[1745973973110,1.10671,1806.7,1806.6,9.83553175]
[1745973973309,1.10671,1806.7,1806.6,9.83535471]
[1745973974311,1.10671,1806.7,1806.6,10.94212471]
[1745973975111,5.732,1806.8,1806.7,1.10671]
[1745973975314,5.732,1806.8,1806.7,1.83226471]
[1745973975508,5.73195,1806.8,1806.7,1.83226471]
[1745973975712,5.73195,1806.8,1806.7,3.50896471]
[1745973976009,1.10671,1806.7,1806.6,10.21653]
[1745973976210,1.10671,1806.7,1806.6,10.94222877]
[1745973976617,2.73081,1806.7,1806.6,9.83549877]
[1745973976910,2.73081,1806.7,1806.6,9.1098]
[1745973977112,3.52321,1806.7,1806.6,9.1098]
[1745973977610,3.52321,1806.7,1806.6,3.2078]
[1745973977811,1.10683,1806.5,1806.4,5.902]
[1745973978211,4.91983,1806.5,1806.4,5.902]
[1745973978413,5.78213,1806.5,1806.4,5.902]
[1745973979212,1.10695,1806.3,1806.2,3.2078]
[1745973979913,3.828,1806.5,1806.4,1.10689]
[1745973980108,3.828,1806.5,1806.4,5.03969349]
[1745973980409,1.10677,1806.6,1806.5,1.10683]
[1745973980609,1.10677,1806.6,1806.5,2.79863]
[1745973980911,2.4893,1806.7,1806.6,1.10677]
[1745973981115,0.8315,1806.7,1806.6,6.00637]
[1745973981912,1.93821,1806.7,1806.6,6.00637]
[1745973984814,0.8315,1806.7,1806.6,6.00637]
[1745973985014,3.62639,1806.8,1806.7,1.10671]
[1745973985215,3.62639,1806.8,1806.7,2.82091]
[1745973985718,1.10671,1806.7,1806.6,4.31452]
[1745973986015,3.59461,1806.7,1806.6,5.03901685]
[1745973986213,3.59461,1806.7,1806.6,6.75321685]
[1745973988416,3.59461,1806.7,1806.6,6.75317193]
[1745973989110,3.59461,1806.7,1806.6,5.03897193]
[1745973990218,3.59461,1806.7,1806.6,6.72457193]
[1745973990219,0.8523,1806.7,1806.6,6.72457193]
[1745973990719,1.95901,1806.7,1806.6,6.72457193]
[1745973991016,3.65911,1806.7,1806.6,6.72457193]
[1745973991219,3.65911,1806.7,1806.6,3.93225193]
[1745973991418,3.65911,1806.7,1806.6,5.03902193]
[1745973992120,3.65911,1806.7,1806.6,6.69047204]
[1745973993920,3.65911,1806.7,1806.6,5.03897204]
[1745973994622,3.65911,1806.7,1806.6,3.93220204]
[1745973994820,3.65911,1806.7,1806.6,5.03897204]
[1745973995019,3.65911,1806.7,1806.6,3.93220204]
[1745973995222,3.65911,1806.7,1806.6,5.03897204]
[1745973997617,3.65911,1806.7,1806.6,3.93220204]
[1745973997921,3.65911,1806.7,1806.6,3.2078]
[1745973998425,7.46311,1806.7,1806.6,3.2078]
[1745973999327,11.29111,1806.7,1806.6,3.2078]
[1745974001025,1.10683,1806.5,1806.4,1.10688]
[1745974001216,1.10683,1806.5,1806.4,4.31468]
[1745974002024,1.91483,1806.5,1806.4,4.31468]
[1745974002822,2.78371,1806.6,1806.5,1.10683]
[1745974003226,3.58251,1806.6,1806.5,2.71193]
[1745974004628,3.58251,1806.6,1806.5,1.6051]
[1745974006428,1.10683,1806.5,1806.4,5.17109]
[1745974006630,2.76433,1806.5,1806.4,5.17109]
[1745974006930,2.76433,1806.5,1806.4,6.79999]
[1745974007728,1.10683,1806.5,1806.4,6.79999]
[1745974008131,1.10681,1806.6,1806.5,1.10677]
[1745974008330,1.10681,1806.6,1806.5,2.73573]
[1745974008533,2.76431,1806.6,1806.5,2.73573]
[1745974009035,1.10681,1806.6,1806.5,2.73573]
[1745974009428,5.4884,1806.7,1806.6,1.10677]
[1745974009429,3.804,1806.7,1806.6,1.10677]
[1745974009730,2.81433,1806.9,1806.8,1.10665]
[1745974009931,2.81433,1806.9,1806.8,4.31445]
[1745974010137,4.45143,1806.9,1806.8,4.31445]
[1745974011326,1.94383,1806.9,1806.8,5.99655]
[1745974012226,3.63553,1806.9,1806.8,3.2078]
[1745974012432,1.10671,1806.7,1806.6,5.91941]
[1745974013227,1.94601,1806.7,1806.6,3.2078]
[1745974013532,1.94601,1806.7,1806.6,4.31457]
[1745974013732,1.94601,1806.7,1806.6,3.2078]
[1745974013934,5.75001,1806.7,1806.6,3.2078]
[1745974014126,9.57801,1806.7,1806.6,3.2078]
[1745974015131,5.75001,1806.7,1806.6,3.2078]
[1745974016229,9.57801,1806.7,1806.6,3.2078]
[1745974016836,9.57801,1806.7,1806.6,4.31457]
[1745974017134,9.57801,1806.7,1806.6,3.2078]
[1745974017135,5.75001,1806.7,1806.6,3.2078]
[1745974019037,1.10677,1806.6,1806.5,2.67993]
[1745974019237,2.77997,1806.6,1806.5,2.67993]
[1745974020439,2.77997,1806.6,1806.5,1.5731]
[1745974021142,1.10683,1806.5,1806.4,3.2078]
[1745974021437,3.54923,1806.5,1806.4,3.2078]
[1745974022737,3.54923,1806.5,1806.3,9.49755]
[1745974022738,1.10695,1806.3,1806.2,3.2078]
[1745974023440,2.72295,1806.3,1806.2,3.2078]
[1745974024041,5.53522,1806.2,1806.0,3.2078]
[1745974024343,6.63598,1806.1,1806.0,3.2078]
[1745974024536,1.10714,1806.0,1805.9,7.30007477]
[1745974024842,2.78894,1806.0,1805.9,7.30007477]
[1745974025435,1.1072,1805.9,1805.8,3.2078]
[1745974025634,2.789,1805.9,1805.8,3.2078]
[1745974034037,1.10738,1805.6,1805.5,4.8854]
[1745974034538,1.10738,1805.6,1805.5,3.2078]
[1745974035041,1.10738,1805.6,1805.4,1.697]
[1745974035042,1.10744,1805.5,1805.4,1.697]
[1745974035348,1.97114,1805.5,1805.4,1.697]
[1745974036651,1.10751,1805.4,1805.3,3.2078]
[1745974036950,2.81241,1805.4,1805.3,3.2078]
[1745974040155,6.64041,1805.4,1805.3,3.2078]
[1745974040952,4.93551,1805.4,1805.3,4.31537]
[1745974041256,1.10751,1805.4,1805.3,3.2078]
[1745974041450,2.81591,1805.4,1805.3,3.2078]
[1745974042156,6.64391,1805.4,1805.3,3.2078]
[1745974046159,6.64391,1805.4,1805.3,4.9015]
[1745974047357,1.10751,1805.4,1805.3,6.00907]
[1745974048357,4.90246,1805.5,1805.4,1.10751]
[1745974048559,3.795,1805.5,1805.4,3.52651]
[1745974048858,3.795,1805.5,1805.4,4.38661]
[1745974049053,4.90244,1805.5,1805.4,8.21461]
[1745974050155,4.90244,1805.5,1805.4,4.38661]
[1745974051964,1.10744,1805.5,1805.4,9.38661]
[1745974052261,1.10744,1805.5,1805.4,13.21461]
[1745974052660,1.10744,1805.5,1805.4,8.21461]
[1745974054366,1.10743,1805.6,1805.5,1.10739]
[1745974054566,1.10743,1805.6,1805.5,5.89199]
[1745974054864,9.0616,1805.8,1805.6,1.10732]
[1745974054865,1.10737,1805.7,1805.6,1.10732]
[1745974055068,1.10737,1805.7,1805.6,2.68412]
[1745974055365,5.4694,1805.8,1805.6,2.68412]
[1745974055366,4.90431,1805.8,1805.7,1.10732]
[1745974055568,4.90431,1805.8,1805.7,6.75312]
[1745974057969,3.797,1805.8,1805.7,6.75312]
[1745974058267,4.90426,1805.8,1805.7,10.58112]
[1745974061170,4.90426,1805.8,1805.7,6.75312]
[1745974062073,4.89922882,1805.8,1805.7,6.75312]
[1745974064071,4.89922882,1805.8,1805.7,10.58112]
[1745974066073,4.89922882,1805.8,1805.7,6.75312]
[1745974067174,4.89922882,1805.8,1805.7,10.58112]
[1745974067776,6.56412882,1805.8,1805.7,10.58112]
[1745974068077,6.56412882,1805.8,1805.7,6.75312]
[1745974070173,6.56412882,1805.8,1805.7,10.58112]
[1745974071877,6.56412882,1805.8,1805.7,9.71992]
[1745974072277,6.56412882,1805.8,1805.7,5.89192]
[1745974072475,6.56412882,1805.8,1805.7,4.7846]
[1745974072674,6.56412882,1805.8,1805.7,3.2078]
[1745974073280,6.56412882,1805.8,1805.7,4.31512]
[1745974074481,4.89922882,1805.8,1805.7,6.02272]
[1745974074669,1.10726,1805.8,1805.7,6.02272]
[1745974075081,1.10726,1805.8,1805.7,3.2078]
[1745974075378,2.67546,1805.8,1805.7,3.2078]
[1745974076679,2.67546,1805.8,1805.7,4.31512]
[1745974078886,2.67546,1805.8,1805.7,3.2078]
[1745974080587,1.10738,1805.7,1805.5,4.9154]
[1745974080787,4.45018,1805.6,1805.5,3.2078]
[1745974081092,1.10769,1805.1,1805.0,7.30007477]
[1745974081786,2.74789,1805.1,1805.0,7.30007477]
[1745974083684,1.10775,1805.0,1804.9,4.9041]
[1745974085293,2.69925,1805.0,1804.9,4.9041]
[1745974086497,2.69925,1805.0,1804.9,6.01191]
[1745974086689,1.1076,1805.3,1805.2,1.10763]
[1745974087188,1.1076,1805.3,1805.2,4.93563]
[1745974087388,1.1076,1805.3,1805.2,6.53463]
[1745974089195,1.1075,1805.5,1805.4,1.10745]
[1745974089396,1.10751,1805.4,1805.3,6.76902]
[1745974090194,1.10751,1805.4,1805.3,10.59702]
[1745974090492,1.1075,1805.5,1805.4,1.10745]
[1745974090796,1.1075,1805.5,1805.4,2.74465]
[1745974091197,1.1075,1805.5,1805.4,6.57265]
[1745974092398,1.10742,1805.6,1805.5,1.10738]
[1745974092601,1.10742,1805.6,1805.5,6.72008]
[1745974093296,1.10742,1805.6,1805.5,3.2078]
[1745974093496,1.10751,1805.4,1805.3,4.31536]
[1745974093696,1.10751,1805.4,1805.3,2.72246]
[1745974093992,2.68541,1805.4,1805.3,1.6149]
[1745974094804,2.68541,1805.4,1805.3,2.72247]
[1745974095000,1.10757,1805.3,1805.2,0.79]
[1745974095197,2.68547,1805.3,1805.2,1.89763]
[1745974096198,2.68547,1805.3,1805.2,3.55113]
[1745974098104,2.68547,1805.3,1805.2,9.45313]
[1745974100503,1.10755,1805.4,1805.3,1.10757]
[1745974100698,1.10755,1805.4,1805.3,2.68817]
[1745974100898,1.10755,1805.4,1805.3,5.89597]
[1745974101805,3.56876,1805.7,1805.6,1.10738]
[1745974102105,1.10738,1805.6,1805.5,1.10742]
[1745974102408,3.53438,1805.6,1805.5,1.10742]
[1745974102903,3.53438,1805.6,1805.5,4.31522]
[1745974103099,3.53438,1805.6,1805.5,9.73242]
[1745974103907,2.427,1805.6,1805.5,15.63442]
[1745974104203,3.53438,1805.6,1805.5,15.63442]
[1745974104400,3.53438,1805.6,1805.5,12.42662]
[1745974104596,3.53438,1805.6,1805.5,15.63442]
[1745974104792,3.53438,1805.6,1805.5,12.42662]
[1745974105302,2.427,1805.6,1805.5,15.63442]
[1745974107404,3.53438,1805.6,1805.5,15.63442]
[1745974107605,2.427,1805.6,1805.5,15.63442]
[1745974108098,1.6067,1805.6,1805.5,15.63442]
[1745974108299,5.69681,1805.8,1805.7,1.10732]
[1745974108501,3.776,1805.8,1805.7,4.31512]
[1745974108902,3.776,1805.8,1805.7,6.86682]
[1745974109095,3.776,1805.8,1805.7,10.69482]
[1745974109702,3.776,1805.8,1805.7,16.59682]
[1745974110010,1.10706,1806.2,1806.1,1.10703]
[1745974110201,3.54486,1806.2,1806.1,1.10703]
[1745974111307,3.54486,1806.2,1806.1,2.70773]
[1745974111510,1.6229,1806.2,1806.1,8.60973]
[1745974111804,1.10698,1806.3,1806.2,1.10702]
[1745974112005,2.72988,1806.3,1806.2,2.70772]
[1745974112197,1.6229,1806.3,1806.2,2.70772]
[1745974112401,2.72985,1806.3,1806.2,2.70772]
[1745974112601,2.72985,1806.3,1806.2,1.10702]
[1745974117111,1.10695,1806.3,1806.2,1.10702]
[1745974117327,4.45595,1806.3,1806.2,1.10702]
[1745974118105,4.88294,1806.4,1806.2,1.10702]
[1745974118308,6.49054,1806.4,1806.3,1.10695]
[1745974118509,2.71454,1806.4,1806.3,1.89415]
[1745974118709,2.71449,1806.4,1806.3,1.89415]
[1745974118910,2.83066,1806.5,1806.4,1.10689]
[1745974119210,2.83066,1806.5,1806.4,2.68439]
[1745974119611,2.71441,1806.6,1806.5,1.10683]
[1745974119811,2.71441,1806.6,1806.5,8.58633]
[1745974124912,2.71441,1806.6,1806.5,5.902]
[1745974128816,2.71441,1806.6,1806.5,7.00883]
[1745974129410,2.71441,1806.6,1806.5,5.902]
[1745974130420,2.71441,1806.6,1806.5,1.10683]
[1745974131318,1.10683,1806.5,1806.4,9.45194]
[1745974131517,2.80023,1806.5,1806.4,9.45194]
[1745974132419,2.80023,1806.5,1806.4,8.62234]
[1745974136123,2.80023,1806.5,1806.4,12.45034]
[1745974137722,1.10683,1806.5,1806.4,12.45034]
[1745974138229,1.10683,1806.5,1806.4,8.62234]
[1745974139226,1.10654,1807.1,1807.0,1.1065]
[1745974139423,2.80587,1807.0,1806.9,1.1065]
[1745974139823,2.80587,1807.0,1806.9,3.5465]
[1745974140133,0.8438,1807.2,1806.9,2.44]
[1745974140326,1.95023,1807.2,1807.1,1.10646]
[1745974140529,1.10646,1807.1,1807.0,12.65018]
[1745974141027,2.81126,1807.1,1807.0,12.65018]
[1745974141229,1.7048,1807.1,1807.0,12.65018]
[1745974141834,2.81126,1807.1,1807.0,53.45018]
[1745974142136,1.7048,1807.1,1807.0,53.45018]
[1745974143735,0.8438,1807.2,1807.1,1.10646]
[1745974143940,1.9502,1807.2,1807.1,2.76126]
[1745974144637,1.10646,1807.1,1807.0,51.8607]
[1745974144830,2.69506,1807.1,1807.0,51.8607]
[1745974145035,1.10665,1806.8,1806.7,7.00867]
[1745974145234,1.10665,1806.8,1806.7,5.902]
[1745974145433,1.10665,1806.8,1806.7,7.00871]
[1745974146131,2.70155,1806.8,1806.7,7.00871]
[1745974148239,2.70155,1806.8,1806.7,5.902]
[1745974148445,2.70155,1806.8,1806.7,7.00871]
[1745974148828,2.76645,1807.0,1806.7,1.10671]
[1745974149029,1.1065,1807.1,1807.0,1.10646]
[1745974149229,1.1065,1807.1,1807.0,7.00846]
[1745974149432,1.1065,1807.1,1807.0,8.69446]
[1745974151136,1.1065,1807.1,1807.0,7.588]
[1745974151342,1.9232,1807.1,1807.0,5.902]
[1745974151935,5.6862,1807.1,1807.0,5.902]
[1745974152133,1.10671,1806.7,1806.6,5.902]
[1745974152340,1.10671,1806.7,1806.6,9.1098]
[1745974153233,2.72311,1806.7,1806.6,10.21657]
[1745974153441,0.7896,1806.8,1806.6,9.1098]
[1745974153640,2.72311,1806.7,1806.6,10.21655]
[1745974154440,2.72311,1806.7,1806.6,9.1098]
[1745974155033,2.76706,1806.6,1806.3,7.5129]
[1745974155238,1.10689,1806.4,1806.3,5.902]
[1745974155839,2.79719,1806.4,1806.3,5.902]
[1745974157039,2.79719,1806.4,1806.3,7.00895]
[1745974157746,2.79719,1806.4,1806.3,8.61985]
[1745974158044,1.10689,1806.4,1806.3,8.61985]
[1745974158939,1.10689,1806.4,1806.3,5.902]
[1745974159141,2.68769,1806.4,1806.3,5.902]
[1745974159651,1.10695,1806.3,1806.2,6.0391]
[1745974160644,1.10695,1806.3,1806.2,4.9321]
[1745974160841,1.10695,1806.3,1806.2,6.03912]
[1745974161444,1.10695,1806.3,1806.2,3.2078]
[1745974162447,1.10695,1806.3,1806.2,4.31482]
[1745974163450,1.5808,1806.4,1806.3,1.10695]
[1745974163651,2.68774,1806.4,1806.3,2.70085]
[1745974163849,2.68774,1806.4,1806.3,3.52905]
[1745974164949,4.3825,1806.5,1806.4,1.10689]
[1745974164950,1.10687,1806.5,1806.4,1.10689]